[Event "Early-Titled-Tuesday-Blitz-May-07-2024"]
[Site "Chess.com"]
[Date "2024.05.07"]
[Round "2"]
[White "giovannibrandao7"]
[Black "LoaySameer"]
[Result "0-1"]
[WhiteElo "2299"]
[BlackElo "2518"]
[TimeControl "180+1"]
[EndTime "8:20:13 PDT"]
[Termination "LoaySameer won by checkmate"]

1. e4 {[%clk 0:02:57.6]} 1... g6 {[%clk 0:03:00.1]} 2. d4 {[%clk 0:02:57.4]}
2... Bg7 {[%clk 0:03:00.4]} 3. Nc3 {[%clk 0:02:58.1]} 3... d6 {[%clk 0:03:00.8]}
4. f4 {[%clk 0:02:58.6]} 4... Nc6 {[%clk 0:02:59.3]} 5. Nf3 {[%clk 0:02:58.1]}
5... Bg4 {[%clk 0:02:59.3]} 6. Be3 {[%clk 0:02:52.1]} 6... Bxf3 {[%clk
0:02:59.4]} 7. gxf3 {[%clk 0:02:52.1]} 7... d5 {[%clk 0:02:59.8]} 8. Bb5 {[%clk
0:02:46.3]} 8... e6 {[%clk 0:02:56.1]} 9. Qd2 {[%clk 0:02:25.8]} 9... Ne7 {[%clk
0:02:53.1]} 10. O-O-O {[%clk 0:02:19.9]} 10... a6 {[%clk 0:02:52.9]} 11. Bxc6+
{[%clk 0:02:18.8]} 11... Nxc6 {[%clk 0:02:53.8]} 12. h4 {[%clk 0:02:17.1]} 12...
h5 {[%clk 0:02:52.2]} 13. f5 {[%clk 0:02:12.3]} 13... gxf5 {[%clk 0:02:52.4]}
14. exf5 {[%clk 0:02:06.5]} 14... exf5 {[%clk 0:02:35]} 15. Bg5 {[%clk
0:02:04.6]} 15... f6 {[%clk 0:02:32.3]} 16. Rde1+ {[%clk 0:01:58.3]} 16... Kf7
{[%clk 0:02:31.5]} 17. Bf4 {[%clk 0:00:59.1]} 17... Ne7 {[%clk 0:02:29.3]} 18.
Rhg1 {[%clk 0:00:54.6]} 18... Ng6 {[%clk 0:02:28.7]} 19. Qg2 {[%clk 0:00:43.1]}
19... Rh6 {[%clk 0:02:19.6]} 20. Bxh6 {[%clk 0:00:42.4]} 20... Bxh6+ {[%clk
0:02:20.5]} 21. Kb1 {[%clk 0:00:40.8]} 21... Nf4 {[%clk 0:02:20.8]} 22. Qh2
{[%clk 0:00:19.9]} 22... Qd6 {[%clk 0:01:45.6]} 23. Ne2 {[%clk 0:00:19.3]} 23...
Nxe2 {[%clk 0:01:14.7]} 24. Qxe2 {[%clk 0:00:19.5]} 24... f4 {[%clk 0:00:26.3]}
25. Qg2 {[%clk 0:00:15.9]} 25... f5 {[%clk 0:00:26.7]} 26. Re5 {[%clk 0:00:14]}
26... Qf6 {[%clk 0:00:26.8]} 27. Rxd5 {[%clk 0:00:11.7]} 27... Re8 {[%clk
0:00:24]} 28. Qh3 {[%clk 0:00:10.6]} 28... Ke6 {[%clk 0:00:06.2]} 29. Rxf5
{[%clk 0:00:06.3]} 29... Qxf5 {[%clk 0:00:06.1]} 30. Re1+ {[%clk 0:00:07]} 30...
Kf6 {[%clk 0:00:05.4]} 31. Qxf5+ {[%clk 0:00:07.7]} 31... Kxf5 {[%clk
0:00:06.3]} 32. Rxe8 {[%clk 0:00:08]} 32... Bg7 {[%clk 0:00:06.9]} 33. Re7
{[%clk 0:00:07.4]} 33... Bf6 {[%clk 0:00:07.4]} 34. Rxc7 {[%clk 0:00:07.5]}
34... Bxh4 {[%clk 0:00:08]} 35. d5 {[%clk 0:00:04.1]} 35... Bf6 {[%clk
0:00:06.6]} 36. Rh7 {[%clk 0:00:04.2]} 36... Kg6 {[%clk 0:00:06.8]} 37. Rxb7
{[%clk 0:00:03.1]} 37... h4 {[%clk 0:00:07.1]} 38. Rb8 {[%clk 0:00:01.1]} 38...
h3 {[%clk 0:00:06.8]} 39. Rg8+ {[%clk 0:00:01.8]} 39... Bg7 {[%clk 0:00:07]} 40.
d6 {[%clk 0:00:01.6]} 40... h2 {[%clk 0:00:07.6]} 41. b3 {[%clk 0:00:01.5]}
41... h1=Q# {[%clk 0:00:07.8]} 0-1

[Event "Early-Titled-Tuesday-Blitz-May-07-2024"]
[Site "Chess.com"]
[Date "2024.05.07"]
[Round "2"]
[White "andrzej"]
[Black "Chesmc"]
[Result "1-0"]
[WhiteElo "2449"]
[BlackElo "2081"]
[TimeControl "180+1"]
[EndTime "8:20:13 PDT"]
[Termination "andrzej won by resignation"]

1. e4 {[%clk 0:03:00.9]} 1... Nf6 {[%clk 0:02:57]} 2. e5 {[%clk 0:02:58.5]} 2...
Nd5 {[%clk 0:02:55.2]} 3. d4 {[%clk 0:02:59]} 3... d6 {[%clk 0:02:54.5]} 4. c4
{[%clk 0:02:59.6]} 4... Nb6 {[%clk 0:02:53.3]} 5. f4 {[%clk 0:03:00.2]} 5...
dxe5 {[%clk 0:02:53]} 6. fxe5 {[%clk 0:03:01.1]} 6... Bf5 {[%clk 0:02:53.4]} 7.
Nc3 {[%clk 0:03:00.4]} 7... e6 {[%clk 0:02:53.5]} 8. Be3 {[%clk 0:02:57.7]} 8...
Be7 {[%clk 0:02:45.8]} 9. Nf3 {[%clk 0:02:57.6]} 9... Nc6 {[%clk 0:02:42.6]} 10.
Qd2 {[%clk 0:02:54.8]} 10... O-O {[%clk 0:02:35.2]} 11. Be2 {[%clk 0:02:54.7]}
11... f6 {[%clk 0:02:35]} 12. exf6 {[%clk 0:02:53.8]} 12... Bxf6 {[%clk
0:02:35.3]} 13. O-O {[%clk 0:02:53.2]} 13... Qe7 {[%clk 0:02:35.5]} 14. Rad1
{[%clk 0:02:51.3]} 14... Rad8 {[%clk 0:02:34.9]} 15. Qc1 {[%clk 0:02:48.9]}
15... Rd7 {[%clk 0:02:32]} 16. Kh1 {[%clk 0:02:45.5]} 16... Rfd8 {[%clk
0:02:31.4]} 17. c5 {[%clk 0:02:27]} 17... Nc8 {[%clk 0:02:09.6]} 18. Bb5 {[%clk
0:02:21.9]} 18... Bg4 {[%clk 0:01:53.2]} 19. Bxc6 {[%clk 0:02:20.2]} 19... bxc6
{[%clk 0:01:53.2]} 20. Ne4 {[%clk 0:02:15.9]} 20... Rf8 {[%clk 0:01:32.5]} 21.
Nxf6+ {[%clk 0:02:12.2]} 21... gxf6 {[%clk 0:01:15.6]} 22. Bh6 {[%clk
0:02:09.2]} 22... Rfd8 {[%clk 0:01:11.7]} 23. Qf4 {[%clk 0:02:08.3]} 23... Bf5
{[%clk 0:01:07.4]} 24. Nh4 {[%clk 0:02:03.4]} 24... Bg6 {[%clk 0:00:53.3]} 25.
h3 {[%clk 0:01:30.7]} 25... Qf7 {[%clk 0:00:33.7]} 26. Qxf6 {[%clk 0:01:22]}
26... Qxf6 {[%clk 0:00:27.7]} 27. Rxf6 {[%clk 0:01:22.9]} 27... Ne7 {[%clk
0:00:20.3]} 28. Rxe6 {[%clk 0:01:16.5]} 28... Nf5 {[%clk 0:00:16.6]} 29. Nxf5
{[%clk 0:01:04.6]} 29... Bxf5 {[%clk 0:00:17.5]} 30. Rxc6 {[%clk 0:01:04.9]}
30... Rxd4 {[%clk 0:00:15.7]} 31. Rxd4 {[%clk 0:01:05.8]} 31... Rxd4 {[%clk
0:00:16.2]} 32. Rxc7 {[%clk 0:01:04.8]} 32... Rc4 {[%clk 0:00:14.3]} 33. Rg7+
{[%clk 0:00:58]} 33... Kh8 {[%clk 0:00:11.9]} 34. Rf7 {[%clk 0:00:57.9]} 34...
Be6 {[%clk 0:00:05.5]} 35. Rf8+ {[%clk 0:00:49.5]} 35... Bg8 {[%clk 0:00:05.7]}
36. Rc8 {[%clk 0:00:49.2]} 36... Rc2 {[%clk 0:00:04.6]} 37. b4 {[%clk
0:00:45.8]} 37... a5 {[%clk 0:00:04.4]} 38. b5 {[%clk 0:00:44.6]} 38... a4
{[%clk 0:00:04.5]} 39. c6 {[%clk 0:00:44.6]} 39... a3 {[%clk 0:00:05]} 40. c7
{[%clk 0:00:43.2]} 40... Rxg2 {[%clk 0:00:02.8]} 41. Rxg8+ {[%clk 0:00:36.6]}
41... Rxg8 {[%clk 0:00:01.8]} 42. Bf4 {[%clk 0:00:35.7]} 42... Rf8 {[%clk
0:00:00.6]} 43. Be5+ {[%clk 0:00:35.6]} 43... Kg8 {[%clk 0:00:01.3]} 44. b6
{[%clk 0:00:35.9]} 44... Kf7 {[%clk 0:00:02.2]} 45. b7 {[%clk 0:00:35.9]} 45...
Ke6 {[%clk 0:00:03.1]} 46. c8=Q+ {[%clk 0:00:35.1]} 46... Rxc8 {[%clk
0:00:02.8]} 47. bxc8=Q+ {[%clk 0:00:35.2]} 47... Kd5 {[%clk 0:00:03.7]} 48. Bg7
{[%clk 0:00:33.2]} 48... Ke4 {[%clk 0:00:03.2]} 49. Qc4+ {[%clk 0:00:33.1]} 1-0

[Event "Early-Titled-Tuesday-Blitz-May-07-2024"]
[Site "Chess.com"]
[Date "2024.05.07"]
[Round "2"]
[White "Bykov_Egor"]
[Black "penguingm1"]
[Result "0-1"]
[WhiteElo "2614"]
[BlackElo "2917"]
[TimeControl "180+1"]
[EndTime "8:20:14 PDT"]
[Termination "penguingm1 won by resignation"]

1. d4 {[%clk 0:03:00.9]} 1... d5 {[%clk 0:02:54.3]} 2. c4 {[%clk 0:03:01.1]}
2... e6 {[%clk 0:02:54.6]} 3. Nf3 {[%clk 0:03:01.2]} 3... Nf6 {[%clk 0:02:54.9]}
4. Nc3 {[%clk 0:03:01.6]} 4... Be7 {[%clk 0:02:54.6]} 5. Bf4 {[%clk 0:03:00.6]}
5... O-O {[%clk 0:02:54.6]} 6. e3 {[%clk 0:03:00.9]} 6... Nbd7 {[%clk
0:02:52.9]} 7. c5 {[%clk 0:02:59.8]} 7... Ne4 {[%clk 0:02:53.2]} 8. Nxe4 {[%clk
0:02:38.5]} 8... dxe4 {[%clk 0:02:54.1]} 9. Nd2 {[%clk 0:02:24.4]} 9... e5
{[%clk 0:02:53.9]} 10. Bg3 {[%clk 0:02:06.4]} 10... exd4 {[%clk 0:01:02.2]} 11.
exd4 {[%clk 0:02:07.3]} 11... f5 {[%clk 0:01:02.1]} 12. Bc4+ {[%clk 0:01:53.5]}
12... Kh8 {[%clk 0:01:01.5]} 13. h3 {[%clk 0:01:07.8]} 13... f4 {[%clk 0:00:48]}
14. Bh2 {[%clk 0:01:07.6]} 14... e3 {[%clk 0:00:48.5]} 15. Ne4 {[%clk
0:00:58.8]} 15... Nf6 {[%clk 0:00:45.3]} 16. Ng5 {[%clk 0:00:52]} 16... exf2+
{[%clk 0:00:14.2]} 17. Kxf2 {[%clk 0:00:51.7]} 17... Ng4+ {[%clk 0:00:14.3]} 18.
hxg4 {[%clk 0:00:52]} 18... Bxg5 {[%clk 0:00:14.7]} 19. Bg1 {[%clk 0:00:47.4]}
19... Bh4+ {[%clk 0:00:14]} 20. Kf1 {[%clk 0:00:46.8]} 20... f3 {[%clk
0:00:09.5]} 21. g3 {[%clk 0:00:37.1]} 21... Bg5 {[%clk 0:00:09.7]} 22. Qd3
{[%clk 0:00:35.9]} 22... h6 {[%clk 0:00:09.6]} 23. Qg6 {[%clk 0:00:32.2]} 23...
Qf6 {[%clk 0:00:08.1]} 24. Qe4 {[%clk 0:00:24.9]} 24... f2 {[%clk 0:00:08.4]}
25. Bh2 {[%clk 0:00:20.6]} 25... Bd7 {[%clk 0:00:08]} 26. Bd3 {[%clk 0:00:20.4]}
26... g6 {[%clk 0:00:08.5]} 27. Kg2 {[%clk 0:00:18.6]} 27... Rae8 {[%clk
0:00:08.1]} 28. Qxg6 {[%clk 0:00:18]} 28... Bc6+ {[%clk 0:00:08]} 29. Kh3 {[%clk
0:00:16.8]} 29... Qxg6 {[%clk 0:00:06.8]} 30. Bxg6 {[%clk 0:00:16.4]} 30... Re2
{[%clk 0:00:06.5]} 31. Rhf1 {[%clk 0:00:15.2]} 31... Rxb2 {[%clk 0:00:06.3]} 32.
Bd3 {[%clk 0:00:15.1]} 32... Rd2 {[%clk 0:00:06.6]} 33. Rad1 {[%clk 0:00:13.8]}
33... Rxa2 {[%clk 0:00:06.5]} 34. Bf5 {[%clk 0:00:11.4]} 34... Bb5 {[%clk
0:00:05.3]} 35. Kg2 {[%clk 0:00:08]} 35... Bxf1+ {[%clk 0:00:05.2]} 36. Rxf1
{[%clk 0:00:08.8]} 36... a5 {[%clk 0:00:05.7]} 37. Rb1 {[%clk 0:00:07.6]} 37...
a4 {[%clk 0:00:05.4]} 38. Kf1 {[%clk 0:00:08]} 38... a3 {[%clk 0:00:05.7]} 39.
Be6 {[%clk 0:00:07]} 39... Rd2 {[%clk 0:00:05.8]} 40. Ra1 {[%clk 0:00:06.7]}
40... Ra8 {[%clk 0:00:05.6]} 41. Kg2 {[%clk 0:00:04.4]} 41... a2 {[%clk
0:00:06]} 0-1

[Event "Early-Titled-Tuesday-Blitz-May-07-2024"]
[Site "Chess.com"]
[Date "2024.05.07"]
[Round "2"]
[White "TigrVShlyape"]
[Black "andriipalchuk"]
[Result "1-0"]
[WhiteElo "2934"]
[BlackElo "2618"]
[TimeControl "180+1"]
[EndTime "8:20:16 PDT"]
[Termination "TigrVShlyape won by resignation"]

1. e4 {[%clk 0:03:00.9]} 1... e6 {[%clk 0:02:59]} 2. d4 {[%clk 0:03:00.3]} 2...
d5 {[%clk 0:02:59.3]} 3. Nc3 {[%clk 0:03:00.2]} 3... Nf6 {[%clk 0:02:59.8]} 4.
e5 {[%clk 0:03:00]} 4... Nfd7 {[%clk 0:02:59.9]} 5. f4 {[%clk 0:03:00.3]} 5...
c5 {[%clk 0:03:00]} 6. Nf3 {[%clk 0:03:00.7]} 6... Nc6 {[%clk 0:03:00.5]} 7. Ne2
{[%clk 0:02:54.4]} 7... Be7 {[%clk 0:02:14.1]} 8. c3 {[%clk 0:02:52.6]} 8... f6
{[%clk 0:02:06.1]} 9. g3 {[%clk 0:02:44.9]} 9... O-O {[%clk 0:01:04.2]} 10. Bh3
{[%clk 0:02:42.3]} 10... Nb6 {[%clk 0:00:57.7]} 11. O-O {[%clk 0:02:40]} 11...
Qe8 {[%clk 0:00:57.3]} 12. b3 {[%clk 0:02:20]} 12... Bd7 {[%clk 0:00:54.4]} 13.
Be3 {[%clk 0:02:19]} 13... cxd4 {[%clk 0:00:53.1]} 14. Nexd4 {[%clk 0:02:15.4]}
14... fxe5 {[%clk 0:00:44.9]} 15. Bxe6+ {[%clk 0:01:48.6]} 15... Kh8 {[%clk
0:00:38.7]} 16. Nxc6 {[%clk 0:01:37.7]} 16... bxc6 {[%clk 0:00:33.1]} 17. Bxd7
{[%clk 0:01:37.3]} 17... Nxd7 {[%clk 0:00:34]} 18. Nxe5 {[%clk 0:01:32.6]} 18...
Nf6 {[%clk 0:00:31.4]} 19. b4 {[%clk 0:01:29]} 19... Ne4 {[%clk 0:00:27.7]} 20.
Bd4 {[%clk 0:01:28.7]} 20... Bf6 {[%clk 0:00:28.4]} 21. Qd3 {[%clk 0:01:17.2]}
21... Qe6 {[%clk 0:00:23.6]} 22. Nf3 {[%clk 0:01:14.9]} 22... Rfe8 {[%clk
0:00:23]} 23. Bxf6 {[%clk 0:01:13.3]} 23... Qxf6 {[%clk 0:00:23.2]} 24. Ne5
{[%clk 0:01:10.9]} 24... Rac8 {[%clk 0:00:19.4]} 25. Rae1 {[%clk 0:01:08.2]}
25... Nd6 {[%clk 0:00:15.5]} 26. a4 {[%clk 0:01:06.1]} 26... Kg8 {[%clk
0:00:15.1]} 27. Kg2 {[%clk 0:01:02.2]} 27... Qf5 {[%clk 0:00:14.6]} 28. Qxf5
{[%clk 0:01:01.6]} 28... Nxf5 {[%clk 0:00:15.5]} 29. Kf3 {[%clk 0:00:58.9]}
29... Nd6 {[%clk 0:00:15.2]} 30. Re3 {[%clk 0:00:52.8]} 30... Ne4 {[%clk
0:00:13.4]} 31. Rd1 {[%clk 0:00:52.3]} 31... Nd6 {[%clk 0:00:08.9]} 32. g4
{[%clk 0:00:46.9]} 32... Re6 {[%clk 0:00:06.9]} 33. Nd7 {[%clk 0:00:44.1]} 33...
Rxe3+ {[%clk 0:00:06.8]} 34. Kxe3 {[%clk 0:00:44.2]} 34... Re8+ {[%clk
0:00:07.6]} 35. Ne5 {[%clk 0:00:40.9]} 35... Ne4 {[%clk 0:00:07.1]} 36. Kd4
{[%clk 0:00:40.1]} 36... Re6 {[%clk 0:00:07.5]} 37. h4 {[%clk 0:00:38.7]} 37...
h5 {[%clk 0:00:07.2]} 38. g5 {[%clk 0:00:37.6]} 38... g6 {[%clk 0:00:06.9]} 39.
c4 {[%clk 0:00:29.3]} 39... Ng3 {[%clk 0:00:06.7]} 40. cxd5 {[%clk 0:00:28.3]}
40... Nf5+ {[%clk 0:00:04.4]} 41. Kc5 {[%clk 0:00:28.1]} 41... cxd5 {[%clk
0:00:04.8]} 42. Rxd5 {[%clk 0:00:27]} 42... Nxh4 {[%clk 0:00:05.4]} 43. Rd8+
{[%clk 0:00:27.2]} 43... Kg7 {[%clk 0:00:05.7]} 44. Rd7+ {[%clk 0:00:27.6]}
44... Kg8 {[%clk 0:00:06.4]} 45. Rxa7 {[%clk 0:00:27.2]} 45... Ng2 {[%clk
0:00:07.1]} 46. Nd7 {[%clk 0:00:25.7]} 46... Nxf4 {[%clk 0:00:06.7]} 47. Nf6+
{[%clk 0:00:25.9]} 47... Kf8 {[%clk 0:00:07.4]} 48. b5 {[%clk 0:00:24.7]} 48...
Nd3+ {[%clk 0:00:07.3]} 49. Kc4 {[%clk 0:00:23]} 49... Ne5+ {[%clk 0:00:07.4]}
50. Kd5 {[%clk 0:00:23.2]} 50... Nf7 {[%clk 0:00:01.8]} 51. Kxe6 {[%clk
0:00:22.9]} 1-0

[Event "Early-Titled-Tuesday-Blitz-May-07-2024"]
[Site "Chess.com"]
[Date "2024.05.07"]
[Round "2"]
[White "masnyszachistaaa"]
[Black "JJDAREK"]
[Result "1-0"]
[WhiteElo "2582"]
[BlackElo "2367"]
[TimeControl "180+1"]
[EndTime "8:20:18 PDT"]
[Termination "masnyszachistaaa won on time"]

1. c4 {[%clk 0:03:00.9]} 1... g6 {[%clk 0:02:59.5]} 2. d4 {[%clk 0:03:00.3]}
2... Bg7 {[%clk 0:02:59.9]} 3. Nc3 {[%clk 0:02:50.3]} 3... d6 {[%clk 0:03:00.1]}
4. e4 {[%clk 0:02:44.2]} 4... e5 {[%clk 0:02:58.7]} 5. Nge2 {[%clk 0:02:38.2]}
5... Nc6 {[%clk 0:02:40.8]} 6. Be3 {[%clk 0:02:28.7]} 6... Nh6 {[%clk
0:02:40.4]} 7. d5 {[%clk 0:02:14.2]} 7... Ne7 {[%clk 0:02:39.7]} 8. f3 {[%clk
0:01:55.6]} 8... f5 {[%clk 0:02:39.8]} 9. Qd2 {[%clk 0:01:52.7]} 9... Nf7 {[%clk
0:02:38.6]} 10. h4 {[%clk 0:01:47.4]} 10... h5 {[%clk 0:02:34.8]} 11. O-O-O
{[%clk 0:01:42.9]} 11... a6 {[%clk 0:02:30.3]} 12. c5 {[%clk 0:01:38.9]} 12...
Bd7 {[%clk 0:02:21.3]} 13. Kb1 {[%clk 0:01:30.2]} 13... O-O {[%clk 0:02:14.9]}
14. Nc1 {[%clk 0:01:18.8]} 14... Kh7 {[%clk 0:02:13.2]} 15. Be2 {[%clk
0:01:10.9]} 15... Bh6 {[%clk 0:02:08]} 16. Bg5 {[%clk 0:00:34.1]} 16... Bxg5
{[%clk 0:01:46.3]} 17. hxg5 {[%clk 0:00:35]} 17... f4 {[%clk 0:01:44.8]} 18. g4
{[%clk 0:00:20.5]} 18... fxg3 {[%clk 0:01:42.3]} 19. Nd3 {[%clk 0:00:19.7]}
19... Ng8 {[%clk 0:01:22]} 20. f4 {[%clk 0:00:11.8]} 20... exf4 {[%clk
0:01:14.1]} 21. Qxf4 {[%clk 0:00:12.7]} 21... Qxg5 {[%clk 0:01:08.4]} 22. Qf3
{[%clk 0:00:02.4]} 22... Ne5 {[%clk 0:01:00.4]} 23. Qg2 {[%clk 0:00:02.8]} 23...
Nxd3 {[%clk 0:00:58.4]} 24. Rxd3 {[%clk 0:00:03.7]} 24... Rf2 {[%clk 0:00:57.6]}
25. Qxg3 {[%clk 0:00:03.5]} 25... Qxg3 {[%clk 0:00:52.1]} 26. Rxg3 {[%clk
0:00:04.4]} 26... Nh6 {[%clk 0:00:37.2]} 27. Bd3 {[%clk 0:00:02.1]} 27... Bg4
{[%clk 0:00:24.8]} 28. e5 {[%clk 0:00:01.5]} 28... dxe5 {[%clk 0:00:24.2]} 29.
Ne4 {[%clk 0:00:02.1]} 29... Rf4 {[%clk 0:00:20.2]} 30. Bc2 {[%clk 0:00:02.2]}
30... Kg7 {[%clk 0:00:19.4]} 31. d6 {[%clk 0:00:02.4]} 31... cxd6 {[%clk
0:00:19.1]} 32. Nxd6 {[%clk 0:00:03.3]} 32... Raf8 {[%clk 0:00:14.7]} 33. Re1
{[%clk 0:00:02.8]} 33... Rf1 {[%clk 0:00:14.5]} 34. Re3 {[%clk 0:00:03.2]} 34...
Rxe1+ {[%clk 0:00:13.6]} 35. Rxe1 {[%clk 0:00:04.1]} 35... h4 {[%clk 0:00:13.9]}
36. Nxb7 {[%clk 0:00:04.3]} 36... h3 {[%clk 0:00:14.2]} 37. c6 {[%clk 0:00:04]}
37... h2 {[%clk 0:00:14.1]} 38. Be4 {[%clk 0:00:04.2]} 38... Rc8 {[%clk
0:00:04.8]} 39. Nd6 {[%clk 0:00:03.8]} 39... Rd8 {[%clk 0:00:02.6]} 40. c7
{[%clk 0:00:03.9]} 40... Rxd6 {[%clk 0:00:02.7]} 41. Rc1 {[%clk 0:00:03.8]} 1-0

[Event "Early-Titled-Tuesday-Blitz-May-07-2024"]
[Site "Chess.com"]
[Date "2024.05.07"]
[Round "2"]
[White "bazar-wokzal"]
[Black "scarabee43"]
[Result "0-1"]
[WhiteElo "2571"]
[BlackElo "2841"]
[TimeControl "180+1"]
[EndTime "8:20:20 PDT"]
[Termination "scarabee43 won by resignation"]

1. e4 {[%clk 0:02:53.5]} 1... c5 {[%clk 0:02:59.4]} 2. c3 {[%clk 0:02:52.9]}
2... d5 {[%clk 0:02:58.8]} 3. exd5 {[%clk 0:02:52.6]} 3... Qxd5 {[%clk
0:02:59.6]} 4. d4 {[%clk 0:02:53.1]} 4... Nf6 {[%clk 0:02:59.8]} 5. Nf3 {[%clk
0:02:52.9]} 5... e6 {[%clk 0:02:59.2]} 6. a3 {[%clk 0:02:52.5]} 6... Nc6 {[%clk
0:02:57.4]} 7. Be3 {[%clk 0:02:52.3]} 7... cxd4 {[%clk 0:02:55.3]} 8. cxd4
{[%clk 0:02:53.2]} 8... Be7 {[%clk 0:02:55.3]} 9. Nc3 {[%clk 0:02:52.7]} 9...
Qd8 {[%clk 0:02:53.4]} 10. Bd3 {[%clk 0:02:53.2]} 10... O-O {[%clk 0:02:53.4]}
11. Qc2 {[%clk 0:02:53.8]} 11... h6 {[%clk 0:02:47.1]} 12. O-O {[%clk
0:02:52.8]} 12... b6 {[%clk 0:02:46.6]} 13. Qd2 {[%clk 0:02:43.9]} 13... Bb7
{[%clk 0:02:42.1]} 14. Bxh6 {[%clk 0:02:38.5]} 14... gxh6 {[%clk 0:01:38.9]} 15.
Qxh6 {[%clk 0:02:37.3]} 15... Nxd4 {[%clk 0:01:39.6]} 16. Ng5 {[%clk 0:02:26.5]}
16... Nf3+ {[%clk 0:01:36.9]} 17. gxf3 {[%clk 0:02:15.2]} 17... Qxd3 {[%clk
0:01:36.8]} 18. Nce4 {[%clk 0:02:00.8]} 18... Bxe4 {[%clk 0:01:29.9]} 19. fxe4
{[%clk 0:02:01]} 19... Bc5 {[%clk 0:00:10.7]} 20. Qxf6 {[%clk 0:01:50.6]} 20...
Qd4 {[%clk 0:00:10.8]} 21. Qh6 {[%clk 0:01:42.6]} 21... Qg7 {[%clk 0:00:10.7]}
22. Qxg7+ {[%clk 0:01:39.1]} 22... Kxg7 {[%clk 0:00:11]} 23. Kg2 {[%clk
0:01:36.3]} 23... Rad8 {[%clk 0:00:10.8]} 24. Rad1 {[%clk 0:01:35.4]} 24... Rg8
{[%clk 0:00:10.8]} 25. f4 {[%clk 0:01:34.5]} 25... Kf6 {[%clk 0:00:11]} 26. Kf3
{[%clk 0:01:33.1]} 26... Ke7 {[%clk 0:00:10.3]} 27. h4 {[%clk 0:01:31.7]} 27...
Bd4 {[%clk 0:00:10.1]} 28. b3 {[%clk 0:01:29.2]} 28... f6 {[%clk 0:00:10.5]} 29.
Nh3 {[%clk 0:01:26.7]} 29... Rh8 {[%clk 0:00:10.7]} 30. Nf2 {[%clk 0:01:14.7]}
30... Rxh4 {[%clk 0:00:10.9]} 31. Rh1 {[%clk 0:01:14.4]} 31... Bxf2 {[%clk
0:00:10]} 32. Kxf2 {[%clk 0:01:10.3]} 32... Rxf4+ {[%clk 0:00:10.6]} 33. Ke3
{[%clk 0:01:09.7]} 33... Rxd1 {[%clk 0:00:11.1]} 34. Rxd1 {[%clk 0:00:59.2]}
34... Rh4 {[%clk 0:00:10.4]} 35. Rc1 {[%clk 0:00:57.8]} 35... Rh3+ {[%clk
0:00:10.2]} 36. Kf4 {[%clk 0:00:55]} 36... e5+ {[%clk 0:00:09.5]} 37. Kg4 {[%clk
0:00:50.5]} 37... Rxb3 {[%clk 0:00:09.5]} 38. Rc7+ {[%clk 0:00:49.6]} 38... Ke6
{[%clk 0:00:10.1]} 39. Rxa7 {[%clk 0:00:49.6]} 39... Re3 {[%clk 0:00:07.3]} 40.
Ra6 {[%clk 0:00:47.2]} 40... Rxe4+ {[%clk 0:00:07.6]} 41. Kf3 {[%clk 0:00:47.4]}
41... Kf5 {[%clk 0:00:08.1]} 42. Rxb6 {[%clk 0:00:46.8]} 42... Rh4 {[%clk
0:00:08.4]} 43. Kg3 {[%clk 0:00:45.7]} 43... Rc4 {[%clk 0:00:08.7]} 44. Ra6
{[%clk 0:00:45.1]} 44... Rc3+ {[%clk 0:00:08.6]} 45. Kf2 {[%clk 0:00:44.7]}
45... Kg5 {[%clk 0:00:09.1]} 46. a4 {[%clk 0:00:44.5]} 46... f5 {[%clk
0:00:09.5]} 47. a5 {[%clk 0:00:45]} 47... Kf4 {[%clk 0:00:10]} 48. Ke2 {[%clk
0:00:41]} 48... Ra3 {[%clk 0:00:10.4]} 49. Ra8 {[%clk 0:00:40.1]} 49... e4
{[%clk 0:00:11]} 50. a6 {[%clk 0:00:38.1]} 50... Ra2+ {[%clk 0:00:11.3]} 51. Kd1
{[%clk 0:00:37.9]} 51... Ke3 {[%clk 0:00:11.6]} 52. a7 {[%clk 0:00:33.9]} 52...
f4 {[%clk 0:00:12]} 53. Kc1 {[%clk 0:00:34.3]} 53... f3 {[%clk 0:00:12.5]} 54.
Kb1 {[%clk 0:00:34.7]} 54... Ra6 {[%clk 0:00:12.9]} 55. Kc2 {[%clk 0:00:32.8]}
55... f2 {[%clk 0:00:13.5]} 0-1

[Event "Early-Titled-Tuesday-Blitz-May-07-2024"]
[Site "Chess.com"]
[Date "2024.05.07"]
[Round "2"]
[White "Karina_Ivanova"]
[Black "LeoLV10"]
[Result "1-0"]
[WhiteElo "2236"]
[BlackElo "2470"]
[TimeControl "180+1"]
[EndTime "8:20:21 PDT"]
[Termination "Karina_Ivanova won by checkmate"]

1. Nc3 {[%clk 0:02:58.7]} 1... d5 {[%clk 0:02:57.2]} 2. d4 {[%clk 0:02:58.3]}
2... Nf6 {[%clk 0:02:57.3]} 3. Bf4 {[%clk 0:02:57.7]} 3... Bf5 {[%clk
0:02:49.5]} 4. e3 {[%clk 0:02:55.6]} 4... e6 {[%clk 0:02:49.6]} 5. Bd3 {[%clk
0:02:48.4]} 5... Bg6 {[%clk 0:02:46.9]} 6. Nge2 {[%clk 0:02:45.1]} 6... a6
{[%clk 0:02:43.3]} 7. O-O {[%clk 0:02:43.7]} 7... Nbd7 {[%clk 0:02:43.3]} 8. f3
{[%clk 0:02:43.3]} 8... c5 {[%clk 0:02:42.9]} 9. Ng3 {[%clk 0:02:24.6]} 9... Be7
{[%clk 0:02:36.2]} 10. Kh1 {[%clk 0:02:18.5]} 10... Bxd3 {[%clk 0:02:27.5]} 11.
Qxd3 {[%clk 0:02:14.9]} 11... cxd4 {[%clk 0:02:25.8]} 12. exd4 {[%clk
0:02:10.3]} 12... Rc8 {[%clk 0:02:25.3]} 13. Nce2 {[%clk 0:02:01.3]} 13... Nb6
{[%clk 0:02:09.6]} 14. c3 {[%clk 0:01:59.6]} 14... Nc4 {[%clk 0:02:09.9]} 15.
Rab1 {[%clk 0:01:57.4]} 15... Qa5 {[%clk 0:02:06.6]} 16. a3 {[%clk 0:01:53.6]}
16... Nd6 {[%clk 0:02:04.2]} 17. Bxd6 {[%clk 0:01:45.9]} 17... Bxd6 {[%clk
0:02:04.3]} 18. f4 {[%clk 0:01:45.5]} 18... g6 {[%clk 0:02:01.2]} 19. Qe3 {[%clk
0:01:40.4]} 19... Be7 {[%clk 0:01:46.4]} 20. Nc1 {[%clk 0:01:37.6]} 20... Ng4
{[%clk 0:01:41.1]} 21. Qe2 {[%clk 0:01:35.8]} 21... h5 {[%clk 0:01:41.2]} 22.
Nd3 {[%clk 0:01:34.3]} 22... Nh6 {[%clk 0:01:35.1]} 23. Ne5 {[%clk 0:01:33.8]}
23... h4 {[%clk 0:01:33.2]} 24. f5 {[%clk 0:01:13.6]} 24... gxf5 {[%clk
0:01:13.1]} 25. Nh5 {[%clk 0:01:09.9]} 25... Rg8 {[%clk 0:01:03.2]} 26. Rbe1
{[%clk 0:01:02.2]} 26... Qb6 {[%clk 0:00:54.7]} 27. Qe3 {[%clk 0:00:53.9]} 27...
Ng4 {[%clk 0:00:52.7]} 28. Qd2 {[%clk 0:00:46.3]} 28... Nxe5 {[%clk 0:00:49.1]}
29. Rxe5 {[%clk 0:00:45.8]} 29... Rg6 {[%clk 0:00:46.6]} 30. Nf4 {[%clk
0:00:43.1]} 30... Rf6 {[%clk 0:00:37.9]} 31. Rfe1 {[%clk 0:00:38.5]} 31... Rd8
{[%clk 0:00:36.8]} 32. Qf2 {[%clk 0:00:34.6]} 32... Rh6 {[%clk 0:00:35.1]} 33.
Qd2 {[%clk 0:00:28.1]} 33... Rh7 {[%clk 0:00:34.3]} 34. Qe2 {[%clk 0:00:24.4]}
34... Qc6 {[%clk 0:00:26]} 35. Rxf5 {[%clk 0:00:19.6]} 35... Rd7 {[%clk
0:00:21.7]} 36. Re5 {[%clk 0:00:18.4]} 36... Kd8 {[%clk 0:00:21.1]} 37. Nxe6+
{[%clk 0:00:17.2]} 37... fxe6 {[%clk 0:00:20.1]} 38. Rxe6 {[%clk 0:00:17.5]}
38... Qc7 {[%clk 0:00:20.4]} 39. Qg4 {[%clk 0:00:16.4]} 39... Rh8 {[%clk
0:00:19.7]} 40. Qg7 {[%clk 0:00:14.5]} 40... Re8 {[%clk 0:00:19]} 41. Qf7 {[%clk
0:00:11.9]} 41... h3 {[%clk 0:00:13.8]} 42. gxh3 {[%clk 0:00:10.8]} 42... Rf8
{[%clk 0:00:13.7]} 43. Qg7 {[%clk 0:00:09.9]} 43... Re8 {[%clk 0:00:13.8]} 44.
Qf7 {[%clk 0:00:09.8]} 44... Rf8 {[%clk 0:00:12.8]} 45. Qxf8+ {[%clk 0:00:09.8]}
45... Bxf8 {[%clk 0:00:11]} 46. Re8# {[%clk 0:00:10]} 1-0